[Event "World Junior U20 Open 2018"]
[Site "Gebze"]
[Date "2018.09.06"]
[Round "2.50"]
[White "Maltezeanu, Stefan"]
[Black "Gorshtein, Ido"]
[Result "0-1"]
[ECO "B17"]
[WhiteElo "2089"]
[BlackElo "2383"]
[Annotator "ChessBase"]
[PlyCount "92"]
[EventDate "2018.09.05"]
[EventType "swiss"]
[EventCountry "TUR"]
[SourceTitle "playchess.com"]
[Source "ChessBase"]
[SourceQuality "1"]
[TimeControl "40/5400+30:1800+30"]

1. e4 {[%emt 0:00:30]} c6 {[%emt 0:00:30]} 2. d4 {[%emt 0:00:00]} d5 {[%emt 0:00:30]} 3. Nc3 {[%emt 0:00:00]} dxe4 {[%emt 0:00:00]} 4. Nxe4 {[%emt 0:00:00]} Nd7 {[%emt 0:00:00]} 5. Ng5 {[%emt 0:00:00]} Ngf6 {[%emt 0:00:00]} 6. Bd3 {[%emt 0:00:30]} e5 {[%emt 0:00:00]} 7. Qe2 {[%emt 0:02:30]} Qe7 {[%emt 0:01:30]} 8. N1f3 {[%emt 0:01:30]} exd4 {[%emt 0:02:30]} 9. Nxd4 {[%emt 0:02:30]} Qxe2+ {[%emt 0:04:30]} 10. Bxe2 {[%emt 0:00:30]} Bc5 {[%emt 0:02:30]} 11. Nb3 {[%emt 0:01:30]} Bb6 {[%emt 0:01:30]} 12. O-O {[%emt 0:01:30]} O-O {[%emt 0:00:30]} 13. Bf4 {[%emt 0:05:30]} h6 {[%emt 0:00:30]} 14. Nf3 {[%emt 0:00:30]} Re8 {[%emt 0:01:30]} 15. Bd3 {[%emt 0:02:30]} Nd5 {[%emt 0:03:30]} 16. Bd2 {[%emt 0:03:30]} Nf8 {[%emt 0:09:30]} 17. c4 {[%emt 0:04:30]} Nf6 {[%emt 0:00:30]} 18. Rfe1 {[%emt 0:03:30]} Rd8 {[%emt 0:04:30]} 19. Bc2 {[%emt 0:00:30]} Be6 {[%emt 0:00:30]} 20. c5 {[%emt 0:00:30]} Bxb3 {[%emt 0:03:30]} 21. Bxb3 {[%emt 0:01:30]} Bxc5 {[%emt 0:00:00]} 22. Be3 {[%emt 0:04:30]} Bxe3 {[%emt 0:02:00]} 23. Rxe3 {[%emt 0:00:00]} Ng6 {[%emt 0:00:00]} 24. h4 {[%emt 0:04:00]} Re8 {[%emt 0:03:00]} 25. Rae1 {[%emt 0:00:30]} Rxe3 {[%emt 0:00:30]} 26. Rxe3 {[%emt 0:00:00]} Re8 {[%emt 0:01:30]} 27. Rxe8+ {[%emt 0:01:00]} Nxe8 {[%emt 0:00:00]} 28. h5 {[%emt 0:01:30]} Nf4 {[%emt 0:00:00]} 29. Ne5 {[%emt 0:00:30]} Nd6 {[%emt 0:00:30]} 30. g4 {[%emt 0:00:30]} Kf8 {[%emt 0:00:30]} 31. Nc4 {[%emt 0:07:30]} Nxc4 {[%emt 0:00:30]} 32. Bxc4 {[%emt 0:00:00]} b5 {[%emt 0:00:00]} 33. Bf1 {[%emt 0:00:00]} Ke7 {[%emt 0:00:00]} 34. f3 {[%emt 0:02:30]} Ke6 {[%emt 0:00:30]} 35. Kf2 {[%emt 0:00:30]} Ke5 {[%emt 0:00:30]} 36. Ke3 {[%emt 0:00:30]} a6 {[%emt 0:00:00]} 37. Kd2 {[%emt 0:04:30]} Kd4 {[%emt 0:00:00]} 38. a4 {[%emt 0:01:30]} g6 {[%emt 0:00:30]} 39. axb5 {[%emt 0:00:30]} axb5 {[%emt 0:00:00]} 40. Be2 {[%emt 0:00:00]} gxh5 {[%emt 0:00:00]} 41. Ke1 {[%emt 0:04:00]} Ke3 {[%emt 0:00:00]} 42. Bd1 {[%emt 0:01:30]} c5 {[%emt 0:00:00]} 43. Kf1 {[%emt 0:00:30]} Kd2 {[%emt 0:00:00]} 44. b4 {[%emt 0:00:30]} Kxd1 {[%emt 0:00:00]} 45. bxc5 {[%emt 0:00:30]} b4 {[%emt 0:00:30]} 46. c6 {[%emt 0:00:30]} Nd5 {[%emt 0:00:00]} 0-1

[Event "World Junior U20 Open 2018"]
[Site "Gebze"]
[Date "2018.09.06"]
[Round "2.51"]
[White "Baenziger, Fabian"]
[Black "Petkov, Momchil"]
[Result "1-0"]
[ECO "B38"]
[WhiteElo "2360"]
[BlackElo "2163"]
[Annotator "NA"]
[PlyCount "97"]
[EventDate "2018.09.05"]
[EventType "swiss"]
[EventCountry "TUR"]
[SourceTitle "playchess.com"]
[Source "ChessBase"]
[SourceQuality "1"]
[TimeControl "40/5400+30:1800+30"]

1. e4 {[%emt 0:00:30]} c5 {[%emt 0:00:30]} 2. Nf3 {[%emt 0:00:30]} Nc6 {[%emt 0:00:00]} 3. d4 {[%emt 0:00:00]} cxd4 {[%emt 0:00:00]} 4. Nxd4 {[%emt 0:00:00]} g6 {[%emt 0:00:30]} 5. c4 {[%emt 0:00:30]} Bg7 {[%emt 0:00:30]} 6. Be3 {[%emt 0:00:30]} Nf6 {[%emt 0:00:30]} 7. Nc3 {[%emt 0:00:30]} O-O {[%emt 0:00:30]} 8. Be2 {[%emt 0:00:30]} d6 {[%emt 0:00:30]} 9. O-O {[%emt 0:00:30]} Bd7 {[%emt 0:00:00]} 10. Nc2 {[%emt 0:00:00]} a5 {[%emt 0:05:00]} 11. f3 {[%emt 0:12:00]} a4 {[%emt 0:04:30]} 12. Qd2 {[%emt 0:00:30]} Qa5 {[%emt 0:01:30]} 13. Na3 {[%emt 0:05:30]} Rfc8 {[%emt 0:06:30]} 14. Rac1 {[%emt 0:20:30]} Be8 {[%emt 0:10:30]} 15. f4 $14 {[%emt 0:05:30]} Nxe4 {[%emt 0:16:30]} 16. Nxe4 {[%emt 0:00:30]} Qxd2 {[%emt 0:00:00]} 17. Nxd2 {[%emt 0:03:30]} Bxb2 {[%emt 0:00:00]} 18. Ndb1 {[%emt 0:02:30]} Bxc1 {[%emt 0:00:30]} 19. Rxc1 {[%emt 0:00:00]} f5 {[%emt 0:05:30]} 20. Nc3 {[%emt 0:04:00]} Bf7 {[%emt 0:03:30]} 21. Bf3 {[%emt 0:02:30]} e5 {[%emt 0:07:30]} 22. Bd5 {[%emt 0:01:30]} Na5 {[%emt 0:13:30]} 23. Rb1 {[%emt 0:06:30]} Ra6 {[%emt 0:09:47]} 24. h3 {[%emt 0:04:30]} Bxd5 {[%emt 0:05:55]} 25. Nxd5 {[%emt 0:00:30]} Kf7 {[%emt 0:00:53]} 26. Nb6 {[%emt 0:06:30]} Rc6 {[%emt 0:01:26]} 27. g3 {[%emt 0:00:30]} Ke6 {[%emt 0:00:45]} 28. Kf2 {[%emt 0:00:30]} h6 {[%emt 0:01:42]} 29. h4 {[%emt 0:00:30]} g5 {[%emt 0:00:30]} 30. hxg5 {[%emt 0:00:30]} hxg5 {[%emt 0:01:26]} 31. fxg5 {[%emt 0:00:00]} f4 {[%emt 0:00:14]} 32. gxf4 {[%emt 0:00:00]} exf4 {[%emt 0:00:30]} 33. Bd4 {[%emt 0:00:00]} Kf5 {[%emt 0:00:00]} 34. Rb5+ {[%emt 0:01:00]} Ke4 {[%emt 0:00:52]} 35. g6 {[%emt 0:00:30]} d5 {[%emt 0:00:37]} 36. g7 {[%emt 0:01:30]} Rg6 {[%emt 0:00:45]} 37. Rxd5 {[%emt 0:00:30]} Nc6 {[%emt 0:00:17]} 38. Nd7 {[%emt 0:02:30]} Ra5 {[%emt 0:04:00]} 39. Bc5 {[%emt 0:00:30]} Ne7 {[%emt 0:01:15]} 40. Re5+ {[%emt 0:00:00]} Kd3 {[%emt 0:00:00]} 41. Bxe7 {[%emt 0:02:00]} Rxg7 {[%emt 0:01:36]} 42. Rxa5 {[%emt 0:02:30]} Rxe7 {[%emt 0:00:30]} 43. Nc5+ {[%emt 0:00:00]} Kc3 {[%emt 0:02:30]} 44. Rb5 {[%emt 0:00:00]} Re3 {[%emt 0:04:30]} 45. Nxa4+ {[%emt 0:00:30]} Kd2 {[%emt 0:00:00]} 46. Rb2+ {[%emt 0:02:30]} Kd1 {[%emt 0:00:00]} 47. Rb3 {[%emt 0:00:30]} Re7 {[%emt 0:00:30]} 48. Kf3 {[%emt 0:01:30]} Rf7 {[%emt 0:00:30]} 49. Nc5 {[%emt 0:00:30]} 1-0

[Event "World Junior U20 Open 2018"]
[Site "Gebze"]
[Date "2018.09.06"]
[Round "2.58"]
[White "Yilmaz, Goktan"]
[Black "Galperin, Platon"]
[Result "0-1"]
[ECO "B47"]
[WhiteElo "2237"]
[BlackElo "2348"]
[Annotator "ChessBase"]
[PlyCount "86"]
[EventDate "2018.09.05"]
[EventType "swiss"]
[EventCountry "TUR"]
[SourceTitle "playchess.com"]
[Source "ChessBase"]
[SourceQuality "1"]
[TimeControl "40/5400+30:1800+30"]

1. e4 {[%emt 0:00:30]} c5 {[%emt 0:00:30]} 2. Nf3 {[%emt 0:00:30]} e6 {[%emt 0:00:00]} 3. d4 {[%emt 0:00:00]} cxd4 {[%emt 0:00:00]} 4. Nxd4 {[%emt 0:00:00]} Nc6 {[%emt 0:00:30]} 5. Nc3 {[%emt 0:00:30]} Qc7 {[%emt 0:00:30]} 6. f4 {[%emt 0:00:30]} Nxd4 {[%emt 0:00:30]} 7. Qxd4 {[%emt 0:00:30]} b6 {[%emt 0:00:00]} 8. Be3 {[%emt 0:14:30]} Bb7 {[%emt 0:00:00]} 9. Be2 {[%emt 0:00:30]} Nf6 {[%emt 0:01:30]} 10. O-O-O {[%emt 0:10:30]} Bc5 {[%emt 0:01:30]} 11. Qd3 {[%emt 0:04:30]} Ba6 {[%emt 0:00:00]} 12. Qd2 {[%emt 0:01:30]} Bxe3 {[%emt 0:00:00]} 13. Qxe3 {[%emt 0:00:00]} Bxe2 {[%emt 0:00:00]} 14. Nxe2 {[%emt 0:01:00]} Rc8 {[%emt 0:00:00]} 15. Nc3 {[%emt 0:05:30]} b5 {[%emt 0:03:30]} 16. Rd2 {[%emt 0:03:30]} Qb7 {[%emt 0:08:30]} 17. Re1 {[%emt 0:10:30]} b4 {[%emt 0:03:30]} 18. Nd1 {[%emt 0:00:30]} d5 {[%emt 0:09:30]} 19. Nf2 {[%emt 0:01:30]} O-O {[%emt 0:01:30]} 20. e5 {[%emt 0:04:30]} Nd7 {[%emt 0:00:30]} 21. Qh3 {[%emt 0:01:30]} Rc4 {[%emt 0:01:30]} 22. f5 {[%emt 0:04:30]} exf5 {[%emt 0:01:30]} 23. Qxf5 {[%emt 0:02:30]} Nc5 {[%emt 0:00:00]} 24. Kb1 {[%emt 0:02:30]} Ne6 {[%emt 0:13:00]} 25. Red1 {[%emt 0:02:30]} a5 {[%emt 0:05:30]} 26. Qf3 {[%emt 0:03:30]} Rf4 {[%emt 0:00:30]} 27. Qe2 {[%emt 0:01:30]} d4 {[%emt 0:10:30]} 28. Nd3 {[%emt 0:03:30]} Re4 {[%emt 0:02:30]} 29. Qf3 {[%emt 0:00:00]} Qd5 {[%emt 0:01:30]} 30. h4 {[%emt 0:03:13]} Rd8 {[%emt 0:00:30]} 31. Rf1 {[%emt 0:00:48]} Rd7 {[%emt 0:01:30]} 32. h5 {[%emt 0:00:50]} h6 {[%emt 0:02:30]} 33. Re2 {[%emt 0:02:44]} Ng5 {[%emt 0:03:30]} 34. Qf2 {[%emt 0:00:05]} a4 {[%emt 0:06:30]} 35. Qe1 {[%emt 0:02:20]} b3 {[%emt 0:02:30]} 36. cxb3 {[%emt 0:00:05]} axb3 {[%emt 0:00:30]} 37. a3 {[%emt 0:00:13]} Re3 {[%emt 0:08:23]} 38. Qd1 {[%emt 0:04:46]} Qc4 {[%emt 0:06:13]} 39. e6 {[%emt 0:01:20]} Rxd3 {[%emt 0:02:37]} 40. exd7 {[%emt 0:01:40]} Rxd1+ {[%emt 0:00:00]} 41. Rxd1 {[%emt 0:00:26]} Ne6 {[%emt 0:01:17]} 42. Ree1 {[%emt 0:00:30]} Qc7 {[%emt 0:00:30]} 43. Rxe6 {[%emt 0:00:30]} Qc2+ {[%emt 0:00:30]} 0-1

[Event "World Junior U20 Open 2018"]
[Site "Gebze"]
[Date "2018.09.06"]
[Round "2.60"]
[White "Hollan, Martin"]
[Black "Silva, David"]
[Result "0-1"]
[ECO "E97"]
[WhiteElo "2336"]
[BlackElo "2223"]
[Annotator "NA"]
[PlyCount "74"]
[EventDate "2018.09.05"]
[EventType "swiss"]
[EventCountry "TUR"]
[SourceTitle "playchess.com"]
[Source "ChessBase"]
[SourceQuality "1"]
[TimeControl "40/5400+30:1800+30"]

1. d4 {[%emt 0:00:30]} Nf6 {[%emt 0:00:30]} 2. c4 {[%emt 0:00:00]} g6 {[%emt 0:00:30]} 3. Nc3 {[%emt 0:00:00]} Bg7 {[%emt 0:00:30]} 4. e4 {[%emt 0:00:30]} d6 {[%emt 0:00:30]} 5. Nf3 {[%emt 0:00:00]} O-O {[%emt 0:02:30]} 6. Be2 {[%emt 0:00:00]} e5 {[%emt 0:01:30]} 7. O-O {[%emt 0:00:30]} Nc6 {[%emt 0:00:00]} 8. d5 {[%emt 0:00:30]} Ne7 {[%emt 0:00:00]} 9. b4 {[%emt 0:00:30]} a5 {[%emt 0:16:30]} 10. Ba3 {[%emt 0:00:30]} axb4 {[%emt 0:00:30]} 11. Bxb4 {[%emt 0:00:00]} Nd7 {[%emt 0:00:00]} 12. a4 {[%emt 0:00:00]} Bh6 {[%emt 0:00:00]} 13. a5 {[%emt 0:03:30]} f5 {[%emt 0:01:30]} 14. Nd2 {[%emt 0:01:30]} Nf6 {[%emt 0:00:30]} 15. c5 {[%emt 0:00:30]} Bxd2 {[%emt 0:00:30]} 16. Qxd2 {[%emt 0:00:30]} Nxe4 {[%emt 0:00:30]} 17. Nxe4 {[%emt 0:00:30]} fxe4 {[%emt 0:00:00]} 18. cxd6 {[%emt 0:03:30]} cxd6 {[%emt 0:00:00]} 19. Bc3 {[%emt 0:00:00]} Nf5 {[%emt 0:02:30]} 20. Ra4 {[%emt 0:03:00]} b6 {[%emt 0:02:30]} 21. Rxe4 {[%emt 0:23:30]} bxa5 {[%emt 0:00:30]} 22. Ra1 {[%emt 0:12:30]} Bb7 {[%emt 0:01:30]} 23. Rb1 {[%emt 0:09:30]} Qc7 {[%emt 0:02:30]} 24. f4 {[%emt 0:07:30]} Qc5+ {[%emt 0:03:30]} 25. Kh1 {[%emt 0:00:30]} Rac8 {[%emt 0:01:30]} 26. Bc4 {[%emt 0:12:30]} Nd4 {[%emt 0:00:30]} 27. Bxd4 {[%emt 0:15:40]} Qxc4 {[%emt 0:00:30]} 28. fxe5 {[%emt 0:02:03]} Qxd5 {[%emt 0:02:30]} 29. Re2 {[%emt 0:01:46]} Rc4 {[%emt 0:02:30]} 30. Bc3 {[%emt 0:01:53]} Qxd2 {[%emt 0:00:30]} 31. Bxd2 {[%emt 0:00:32]} Rc2 {[%emt 0:00:30]} 32. Rd1 {[%emt 0:01:33]} dxe5 {[%emt 0:00:30]} 33. Kg1 {[%emt 0:00:53]} Ba6 {[%emt 0:00:00]} 34. Rf2 {[%emt 0:00:00]} Rd8 {[%emt 0:00:00]} 35. h3 {[%emt 0:00:28]} e4 {[%emt 0:00:30]} 36. Kh2 {[%emt 0:00:07]} Rd3 {[%emt 0:00:30]} 37. Be3 {[%emt 0:01:03]} Rxf2 {[%emt 0:00:30]} 0-1

[Event "World Junior U20 Open 2018"]
[Site "Gebze"]
[Date "2018.09.06"]
[Round "2.63"]
[White "Tasdogen, Dincer"]
[Black "Eren, Ataberk"]
[Result "1/2-1/2"]
[ECO "C08"]
[WhiteElo "2329"]
[BlackElo "2180"]
[Annotator "NA"]
[PlyCount "97"]
[EventDate "2018.09.05"]
[EventType "swiss"]
[EventCountry "TUR"]
[SourceTitle "playchess.com"]
[Source "ChessBase"]
[SourceQuality "1"]
[TimeControl "40/5400+30:1800+30"]

1. e4 {[%emt 0:00:00]} e6 {[%emt 0:00:00]} 2. d4 {[%emt 0:00:00]} d5 {[%emt 0:00:00]} 3. Nd2 {[%emt 0:00:30]} c5 {[%emt 0:07:30]} 4. Ngf3 {[%emt 0:00:30]} Nc6 {[%emt 0:00:30]} 5. exd5 {[%emt 0:00:30]} exd5 {[%emt 0:00:30]} 6. Bb5 {[%emt 0:00:30]} Nf6 {[%emt 0:18:30]} 7. O-O {[%emt 0:01:30]} Be7 {[%emt 0:00:30]} 8. dxc5 {[%emt 0:00:30]} Bxc5 {[%emt 0:00:30]} 9. Re1+ {[%emt 0:00:30] C08: French Tarrasch: 3...c5 4 exd5 exd5 sidelines} Be6 {[%emt 0:01:30]} 10. Nb3 {[%emt 0:02:30]} Bb6 {[%emt 0:01:30]} 11. Be3 {[%emt 0:12:30]} O-O {[%emt 0:09:30]} 12. Nbd4 $146 {[%emt 0:06:30]} ({Predecessor:} 12. Bxb6 Qxb6 13. a4 Bg4 14. Be2 Rfe8 15. a5 Qc7 16. h3 Bxf3 17. Bxf3 Rxe1+ 18. Qxe1 {0-1 (39) Lenic,L (2450)-Miezis,N (2547) Nova Gorica 2005}) 12... Bd7 {[%emt 0:01:30]} 13. Bxc6 {[%emt 0:20:30]} bxc6 {[%emt 0:01:30]} 14. Ne5 {[%emt 0:00:00]} c5 {[%emt 0:07:30]} 15. Nxd7 {[%emt 0:11:00]} Qxd7 {[%emt 0:01:30]} 16. Nf3 {[%emt 0:00:00]} h6 {[%emt 0:01:30]} 17. c3 {[%emt 0:01:00]} Rfe8 {[%emt 0:02:30]} 18. a4 {[%emt 0:07:30]} Qd6 {[%emt 0:17:30]} 19. g3 {[%emt 0:06:30]} Qc6 {[%emt 0:10:55]} 20. a5 {[%emt 0:06:30]} Bc7 {[%emt 0:00:20]} 21. Qa4 {[%emt 0:01:30]} Qxa4 {[%emt 0:00:43]} 22. Rxa4 {[%emt 0:02:27]} Bd6 {[%emt 0:00:16]} 23. b4 {[%emt 0:06:31]} cxb4 {[%emt 0:00:42]} 24. cxb4 {[%emt 0:00:30]} a6 {[%emt 0:00:30]} 25. Nd4 {[%emt 0:00:30]} Ne4 {[%emt 0:00:30]} 26. Rc1 {[%emt 0:00:30]} Rec8 {[%emt 0:00:30]} 27. Nc6 {[%emt 0:00:30]} Bf8 {[%emt 0:00:30]} 28. Raa1 {[%emt 0:00:30]} Nd6 {[%emt 0:00:30]} 29. Ne5 {[%emt 0:00:30]} Nc4 {[%emt 0:00:30]} 30. Nxc4 {[%emt 0:08:27]} dxc4 {[%emt 0:11:49]} 31. Rab1 {[%emt 0:00:05]} Rab8 {[%emt 0:00:10]} 32. Bb6 {[%emt 0:00:32]} Rc6 {[%emt 0:01:51]} 33. b5 {[%emt 0:00:53]} axb5 {[%emt 0:00:30]} 34. Rxb5 {[%emt 0:00:02]} Ba3 {[%emt 0:00:27]} 35. Rc3 {[%emt 0:03:18]} Be7 {[%emt 0:00:07]} 36. Rd5 {[%emt 0:01:01]} Bf6 {[%emt 0:01:03]} 37. Rc2 {[%emt 0:00:51]} Kh7 {[%emt 0:00:30]} 38. Kf1 {[%emt 0:00:09]} Kg6 {[%emt 0:01:42]} 39. Ke2 {[%emt 0:00:34]} h5 {[%emt 0:00:30]} 40. h4 {[%emt 0:01:36]} Re8+ {[%emt 0:00:00]} 41. Be3 {[%emt 0:02:34]} Rb8 {[%emt 0:10:55]} 42. Rc5 $16 {[%emt 0:03:30]} Rxc5 {[%emt 0:12:27]} 43. Bxc5 {[%emt 0:00:00]} Rb5 {[%emt 0:00:38]} 44. Bb6 {[%emt 0:00:00]} c3 {[%emt 0:00:00]} 45. Kd3 {[%emt 0:00:30]} Rb1 {[%emt 0:02:43]} 46. Kc4 {[%emt 0:11:36]} Kf5 {[%emt 0:00:09]} 47. Bd4 {[%emt 0:13:48]} Ra1 {[%emt 0:00:00]} 48. Rxc3 {[%emt 0:00:07]} Rxa5 {[%emt 0:00:19]} 49. Rf3+ {[%emt 0:00:00]} 1/2-1/2

[Event "World Junior U20 Open 2018"]
[Site "Gebze"]
[Date "2018.09.06"]
[Round "2.65"]
[White "Shailesh, Dravid"]
[Black "Ismayilov, Muhammad"]
[Result "1-0"]
[ECO "C42"]
[WhiteElo "2325"]
[BlackElo "2137"]
[Annotator "NA"]
[PlyCount "67"]
[EventDate "2018.09.05"]
[EventType "swiss"]
[EventCountry "TUR"]
[SourceTitle "playchess.com"]
[Source "ChessBase"]
[SourceQuality "1"]
[TimeControl "40/5400+30:1800+30"]

1. e4 {[%emt 0:00:30]} e5 {[%emt 0:00:30]} 2. Nf3 {[%emt 0:00:30]} Nf6 {[%emt 0:00:00]} 3. Nxe5 {[%emt 0:00:00]} d6 {[%emt 0:00:00]} 4. Nf3 {[%emt 0:00:00]} Nxe4 {[%emt 0:00:30]} 5. d4 {[%emt 0:00:30]} d5 {[%emt 0:00:30]} 6. Bd3 {[%emt 0:00:30]} Nc6 {[%emt 0:00:30]} 7. O-O {[%emt 0:00:30]} Be7 {[%emt 0:00:00]} 8. c4 {[%emt 0:01:30]} Nb4 {[%emt 0:00:00]} 9. Be2 {[%emt 0:02:30]} O-O {[%emt 0:01:30]} 10. a3 {[%emt 0:00:00]} Nc6 {[%emt 0:02:30]} 11. cxd5 {[%emt 0:02:00] C42: Petroff Defence: 3 Nxe5 and unusual White 3rd moves} (11. Nc3 Nxc3 12. bxc3 Bf5 13. Re1 Re8 14. Ra2 Na5 15. cxd5 Qxd5 16. Rb2 b6 17. Ne5 Rad8 18. Rb5 c5 19. Rxa5 bxa5 20. Bc4 Qb7 21. Nxf7 Kf8 22. Nxd8 Rxd8 {1-0 (52) Grigoriants,S (2561)-Nguyen,N (2630) Riadh 2017}) 11... Qxd5 {[%emt 0:00:30]} 12. Nc3 {[%emt 0:00:30]} Nxc3 {[%emt 0:01:30]} 13. bxc3 {[%emt 0:00:00]} Bg4 {[%emt 0:12:30]} 14. h3 {[%emt 0:03:00]} Bh5 {[%emt 0:10:30]} 15. Rb1 {[%emt 0:04:30]} a6 {[%emt 0:03:30]} 16. Rxb7 {[%emt 0:03:30]} Nxd4 $146 {[%emt 0:09:30]} ({Predecessor:} 16... Na5 17. Rb1 Bg6 18. Bd3 c5 19. Bxg6 hxg6 {½-½ (35) Bezemer,A (2308)-Peredy,F (2176) Triesen 2013}) 17. Nxd4 {[%emt 0:00:00]} Bxe2 {[%emt 0:02:30]} 18. Qxe2 {[%emt 0:00:00]} Qxb7 {[%emt 0:01:30]} 19. Qxe7 {[%emt 0:00:30]} Rfe8 {[%emt 0:02:30]} 20. Qg5 {[%emt 0:00:30]} f6 $18 {[%emt 0:08:30]} 21. Qg4 {[%emt 0:01:30]} Qe4 {[%emt 0:05:30]} 22. Bf4 {[%emt 0:02:30]} c5 {[%emt 0:04:30]} 23. Nf5 {[%emt 0:00:30]} g5 {[%emt 0:01:30]} 24. Bd6 {[%emt 0:01:30]} Qd3 {[%emt 0:09:30]} 25. Ne7+ {[%emt 0:06:30]} Kf7 {[%emt 0:04:59]} 26. Re1 {[%emt 0:00:30]} Red8 {[%emt 0:04:17]} 27. Qh5+ {[%emt 0:03:30]} Kg7 {[%emt 0:01:07]} 28. g4 {[%emt 0:00:00]} Kh8 {[%emt 0:04:39]} 29. Nf5 {[%emt 0:00:00]} Qd5 {[%emt 0:01:02]} 30. Qh6 {[%emt 0:02:30]} Qf7 {[%emt 0:00:36]} 31. Be7 {[%emt 0:00:30]} Re8 {[%emt 0:01:52]} 32. Bxf6+ {[%emt 0:00:30]} Kg8 {[%emt 0:00:14]} 33. Ne7+ {[%emt 0:00:00]} Rxe7 {[%emt 0:00:33]} 34. Rxe7 {[%emt 0:00:00]} 1-0

[Event "World Junior U20 Open 2018"]
[Site "Gebze"]
[Date "2018.09.06"]
[Round "2.66"]
[White "De Block, Yordi"]
[Black "Sevgi, Volkan"]
[Result "1/2-1/2"]
[ECO "A83"]
[WhiteElo "2118"]
[BlackElo "2323"]
[Annotator "NA"]
[PlyCount "93"]
[EventDate "2018.09.05"]
[EventType "swiss"]
[EventCountry "TUR"]
[SourceTitle "playchess.com"]
[Source "ChessBase"]
[SourceQuality "1"]
[TimeControl "40/5400+30:1800+30"]

1. d4 {[%emt 0:00:30]} f5 {[%emt 0:00:30]} 2. e4 {[%emt 0:00:30]} fxe4 {[%emt 0:00:30]} 3. Nc3 {[%emt 0:00:30]} Nf6 {[%emt 0:00:30]} 4. Bg5 {[%emt 0:00:30]} Nc6 {[%emt 0:00:30]} 5. d5 {[%emt 0:00:30]} Ne5 {[%emt 0:00:30]} 6. Qd4 {[%emt 0:00:30]} Nf7 {[%emt 0:00:30]} 7. Bxf6 {[%emt 0:00:30]} exf6 {[%emt 0:00:00]} 8. Nxe4 {[%emt 0:00:00]} f5 {[%emt 0:00:00]} 9. Ng3 {[%emt 0:00:00]} g6 {[%emt 0:00:00] A83: Dutch Defence: Staunton Gambit with 3 Nc3 Nf6 4 Bg5} 10. Nf3 {[%emt 0:04:30]} (10. O-O-O Bh6+ 11. Kb1 O-O 12. h4 Bg7 13. Qd2 Qf6 14. c3 b5 15. Nf3 Rb8 16. h5 c5 17. hxg6 hxg6 {0-1 (28) Saydaliev,S (2380)-Yakubboev,N (2440) Tashkent 2017}) 10... Qe7+ {[%emt 0:02:00]} 11. Be2 {[%emt 0:01:30]} Qb4+ {[%emt 0:00:30]} 12. Qxb4 {[%emt 0:03:30]} Bxb4+ {[%emt 0:00:30]} 13. c3 {[%emt 0:00:00]} Be7 $146 {[%emt 0:01:30]} ({Predecessor:} 13... Bd6 14. O-O-O a6 15. Nd4 O-O 16. Rhe1 b5 17. Nb3 {0-1 (43) Wang,X (1045)-Hlavinkova,L (1605) LSS email 2013}) 14. O-O-O {[%emt 0:00:00]} O-O {[%emt 0:01:30]} 15. Rhe1 {[%emt 0:01:30]} Bf6 {[%emt 0:00:30]} 16. Nd4 {[%emt 0:01:30]} Bg5+ {[%emt 0:16:30]} 17. Kb1 {[%emt 0:03:30]} a6 {[%emt 0:00:00]} 18. Bc4 {[%emt 0:02:30]} b5 {[%emt 0:00:00]} 19. Bb3 {[%emt 0:00:00]} Nd6 {[%emt 0:00:00]} 20. Nf3 {[%emt 0:05:00]} Bf6 {[%emt 0:01:00]} 21. Ne5 {[%emt 0:06:30]} f4 {[%emt 0:02:30]} 22. a4 $19 {[%emt 0:03:30]} (22. Nf1 $11) 22... a5 {[%emt 0:11:30]} 23. Nf1 {[%emt 0:00:30]} Bxe5 {[%emt 0:02:30]} 24. Rxe5 {[%emt 0:00:30]} f3 {[%emt 0:01:30]} 25. g3 {[%emt 0:00:30]} Ba6 {[%emt 0:02:30]} 26. Nd2 {[%emt 0:08:30]} bxa4 {[%emt 0:02:30]} 27. Bxa4 {[%emt 0:00:30]} Rf7 {[%emt 0:06:30]} 28. Rde1 {[%emt 0:04:30]} Be2 {[%emt 0:07:30]} 29. Bd1 {[%emt 0:00:30]} Bxd1 {[%emt 0:02:30]} 30. Rxd1 {[%emt 0:00:00]} Raf8 {[%emt 0:11:30]} 31. Rde1 {[%emt 0:01:00]} h6 {[%emt 0:07:30]} 32. c4 {[%emt 0:03:30]} g5 {[%emt 0:02:51]} 33. Kc2 {[%emt 0:06:30]} Nf5 {[%emt 0:01:25]} 34. Kc3 {[%emt 0:00:30]} g4 {[%emt 0:01:00]} 35. Nb3 {[%emt 0:04:30]} a4 {[%emt 0:03:48]} 36. Nd4 {[%emt 0:00:30]} Nxd4 {[%emt 0:02:18]} 37. Kxd4 {[%emt 0:00:30]} Rb8 {[%emt 0:00:00]} 38. Kc3 {[%emt 0:00:30]} Rf6 {[%emt 0:05:28]} 39. Re8+ {[%emt 0:04:30]} Rf8 {[%emt 0:00:00]} 40. Rxb8 {[%emt 0:00:00]} Rxb8 {[%emt 0:00:00]} 41. Re4 {[%emt 0:01:00]} h5 {[%emt 0:02:10]} 42. Re5 {[%emt 0:03:30]} Rb3+ {[%emt 0:04:30]} 43. Kc2 {[%emt 0:00:30]} Rb4 {[%emt 0:00:00]} 44. Kc3 {[%emt 0:00:00]} Rb3+ {[%emt 0:00:00]} 45. Kc2 {[%emt 0:00:00]} Rb4 {[%emt 0:00:30]} 46. Kc3 {[%emt 0:00:30]} Rb3+ {[%emt 0:07:30]} 47. Kc2 {[%emt 0:00:00]} 1/2-1/2

[Event "World Junior U20 Open 2018"]
[Site "Gebze"]
[Date "2018.09.06"]
[Round "2.67"]
[White "Caglar, Ahmet Ata"]
[Black "Dobrovoljc, Vid"]
[Result "0-1"]
[ECO "E99"]
[WhiteElo "2071"]
[BlackElo "2316"]
[Annotator "NA"]
[PlyCount "70"]
[EventDate "2018.09.05"]
[EventType "swiss"]
[EventCountry "TUR"]
[SourceTitle "playchess.com"]
[Source "ChessBase"]
[SourceQuality "1"]
[TimeControl "40/5400+30:1800+30"]

1. d4 {[%emt 0:00:30]} Nf6 {[%emt 0:00:30]} 2. c4 {[%emt 0:00:00]} g6 {[%emt 0:00:30]} 3. Nc3 {[%emt 0:00:00]} Bg7 {[%emt 0:00:00]} 4. e4 {[%emt 0:00:30]} d6 {[%emt 0:00:00]} 5. Nf3 {[%emt 0:00:30]} O-O {[%emt 0:00:30]} 6. Be2 {[%emt 0:00:30]} e5 {[%emt 0:00:30]} 7. O-O {[%emt 0:00:00]} Nc6 {[%emt 0:01:30]} 8. d5 {[%emt 0:00:00]} Ne7 {[%emt 0:00:00]} 9. Ne1 {[%emt 0:00:00]} Nd7 {[%emt 0:00:00]} 10. Be3 {[%emt 0:00:00]} f5 {[%emt 0:00:30]} 11. f3 {[%emt 0:00:00]} f4 {[%emt 0:00:30]} 12. Bf2 {[%emt 0:00:00]} g5 {[%emt 0:00:30]} 13. Rc1 {[%emt 0:00:00]} Rf6 {[%emt 0:00:30]} 14. Nd3 {[%emt 0:02:00]} Rh6 {[%emt 0:01:30]} 15. c5 {[%emt 0:01:30]} a6 {[%emt 0:02:30]} 16. c6 {[%emt 0:15:30]} bxc6 {[%emt 0:00:00]} 17. dxc6 {[%emt 0:00:30]} Nf8 {[%emt 0:00:00]} 18. Nb4 {[%emt 0:07:30]} Qe8 {[%emt 0:01:30]} 19. Ncd5 {[%emt 0:04:30]} Nxd5 {[%emt 0:00:30]} 20. Nxd5 {[%emt 0:00:30]} Qh5 {[%emt 0:02:30]} 21. h4 {[%emt 0:00:00]} Ne6 {[%emt 0:00:30]} 22. Ne7+ {[%emt 0:15:00]} Kh8 {[%emt 0:00:30]} 23. Qb3 {[%emt 0:07:30]} gxh4 {[%emt 0:12:30]} 24. Kh1 {[%emt 0:11:30]} Qg5 {[%emt 0:22:30]} 25. Nf5 {[%emt 0:00:30]} h3 {[%emt 0:13:30]} 26. g3 {[%emt 0:02:30]} fxg3 {[%emt 0:02:30]} 27. Bxg3 {[%emt 0:00:30]} Nd4 {[%emt 0:01:30]} 28. f4 {[%emt 0:08:30]} exf4 {[%emt 0:08:30]} 29. Nxh6 {[%emt 0:01:30]} Bxh6 {[%emt 0:00:30]} 30. Qc3 {[%emt 0:01:30]} fxg3 {[%emt 0:05:30]} 31. Qxd4+ {[%emt 0:01:30]} Qe5 {[%emt 0:00:00]} 32. Qxe5+ {[%emt 0:00:30]} dxe5 {[%emt 0:00:00]} 33. Rcd1 {[%emt 0:00:00]} g2+ {[%emt 0:00:30]} 34. Kh2 {[%emt 0:00:00]} gxf1=Q {[%emt 0:00:30]} 35. Bxf1 {[%emt 0:00:30]} Bf4+ {[%emt 0:00:00]} 0-1